Cogmind - Beta 16 @@@ ROGUE MODE // 2025.12.01 @ 09:42:28 Player: Darrellet86 Result: Destroyed self with Rocket Launcher Performance ------------- Evolutions (2) 1000 Regions Visited (4) 800 Robots Destroyed (25) 125 Value Destroyed (675) 675 Prototype IDs (0) 0 Alien Tech Used (0) 0 Bonus (0) 0 TOTAL SCORE: 2600 Bonus ------- None Cogmind --------- Core Integrity 0/550 Matter 257/300 Energy 95/100 System Corruption 2% Temperature Cool (0) Movement Core (150) Ox2 Location -8/Materials Parts ------- > --- POWER (1) -------- (None) > --- PROPULSION (4) --- (None) > --- UTILITY (4) ------ (None) > --- WEAPON (2) ------- Rocket Launcher Heavy Flail > --- INVENTORY (5) ---- Assault Cannon Axe Peak State ------------ > --- POWER ------------ Light Nuclear Core > --- PROPULSION ------- Carbon-fiber Leg Improved Carbon-fiber Leg > --- UTILITY ---------- Compact Matter Pod Hardened Medium Armor Plating > --- WEAPON ----------- Axe Blade Saw > --- INVENTORY -------- Assault Cannon Rocket Launcher Heavy Flail [Rating: 22] Favorites ----------- Power Light Ion Engine Engine Light Ion Engine Power Core Light Nuclear Core Propulsion Aluminum Leg Treads Light Treads Leg Aluminum Leg Utility Medium Armor Plating Device Particle Charger Storage Small Storage Unit Protection Medium Armor Plating Weapon EM Pulse Gun Energy Gun EM Pulse Gun Energy Cannon EM Pulse Cannon Ballistic Gun Assault Rifle Ballistic Cannon Assault Cannon Launcher Rocket Launcher Impact Weapon Heavy Flail Slashing Weapon Blade Saw Build | -11 -10 -9 -9 -8 ------- Run | Yrd Mat Mat Min Mat Slots Evolved 4 | . . 2 . 2 Power . | . . . . . Propulsion 2 | . . 2 . . Utility 2 | . . . . 2 Weapon . | . . . . . Parts Attached 35 | 8 5 2 2 18 Power 3 | 1 . . . 2 Engine 1 | 1 . . . . Core 2 | . . . . 2 Reactor . | . . . . . Propulsion 9 | 4 1 2 . 2 Treads 2 | 2 . . . . Leg 7 | 2 1 2 . 2 Wheel . | . . . . . Hover . | . . . . . Flight . | . . . . . Utility 9 | 1 2 . 1 5 Device 2 | . . . . 2 Storage 2 | 1 . . . 1 Processor . | . . . . . Hackware . | . . . . . Protection 5 | . 2 . 1 2 Artifact . | . . . . . Weapon 14 | 2 2 . 1 9 Energy Gun 2 | . 2 . . . Energy Cannon 1 | . . . . 1 Ballistic Gun 2 | 2 . . . . Ballistic Cannon 1 | . . . . 1 Launcher 2 | . . . 1 1 Special Weapon . | . . . . . Impact Weapon 2 | . . . . 2 Slashing Weapon 4 | . . . . 4 Piercing Weapon . | . . . . . Special Melee Weapon . | . . . . . Unidentified Prototypes . | . . . . . Parts Lost 24 | . . . 9 15 Power 3 | . . . 1 2 Propulsion 8 | . . . 3 5 Utility 8 | . . . 3 5 Weapon 5 | . . . 2 3 Highest Loss Streak 9 | . . . 9 6 To Critical Strikes . | . . . . . Average Backups 3 | 2 4 5 4 2 Power . | . . . . . Propulsion 1 | 1 2 2 2 . Utility . | . . 1 . 1 Weapon 1 | 1 1 2 1 1 Tool/Special . | . . . . . Unused Backups 5 | . 3 . . 2 Power 1 | . 1 . . . Propulsion 1 | . . . . 1 Utility 1 | . . . . 1 Weapon 2 | . 2 . . . Tool/Special . | . . . . . Average Slot Usage (%) 67 | . 94 68 55 50 Engine 6 | . 14 11 6 . Core 1 | . . . . 3 Treads 6 | . . . . 12 Leg 16 | . 28 23 31 3 Device 3 | . . . . 7 Storage 2 | . 5 . . 1 Protection 11 | . 17 22 11 4 Energy Gun 7 | . 13 12 5 2 Energy Cannon 1 | . . . . 4 Ballistic Gun 4 | . 14 . . . Launcher 1 | . . . 1 2 Slashing Weapon 2 | . . . . 5 Peak Build Rating 22 | 6 9 14 14 22 Average Rating 10 | 4 7 8 9 12 On Entrance 6 | . 6 9 14 3 Avg Prop Armor Cover (%) 5 | . . . . 5 Naked Turns . | . . . . . Heaviest Build 21 | 12 21 21 19 19 Greatest Support 50 | 20 20 50 50 40 Greatest Overweight (x) 6 | 1 1 1 . 6 Average Overweight (x) . | . . . . . Largest Inventory Capacity 8 | 8 8 5 5 5 Average Capacity 5 | 7 6 5 5 5 Most Carried 7 | 5 7 5 5 5 Average Carried 3 | 2 4 4 3 2 Final Capacity 8 | 8 5 5 5 5 Final Carried 5 | 3 5 5 3 2 Class Distribution -------------------- 100% | Mutant Dominant Class ---------------- Mutant | -10/Materials Mutant | -9/Materials Mutant | -9/Mines Mutant | -8/Materials Resources | -11 -10 -9 -9 -8 ----------- Run | Yrd Mat Mat Min Mat Matter Collected 663 | 151 208 . 6 298 Remotely . | . . . . . Salvage Created 714 | . 203 . . 511 Parts 40 | . 16 . . 24 Haulers Intercepted . | . . . . . Recyclers Shooed 2 | . 1 . . 1 Parts Field Recycled . | . . . . . Retrieved Matter . | . . . . . Parts Self-Destructed . | . . . . . Prevented . | . . . . . Parts Restored . | . . . . . Kills | -11 -10 -9 -9 -8 ------- Run | Yrd Mat Mat Min Mat Combat Hostiles Destroyed 16 | . 3 . . 13 Melee 4 | . . . . 4 Guns 3 | . 3 . . . Cannons 5 | . . . . 5 AOE 3 | . . . . 3 Classes Destroyed 9 | . 4 . . 5 Worker 1 | . 1 . . . Builder 3 | . . . . 3 Mechanic 1 | . . . . 1 Watcher 4 | . 3 . . 1 Swarmer 6 | . 1 . . 5 Grunt 5 | . 2 . . 3 Sentry 1 | . . . . 1 Specialist 3 | . . . . 3 Hunter 1 | . . . . 1 Best Kill Streak 9 | . 3 . . 9 Combat Bots Only 6 | . 2 . . 6 Max Kills in Single Turn 2 | . 1 . . 2 Gunslinging . | . . . . . Exploded 1 | . . . . 1 Melee 1 | . . . . 1 Uniques/NPCs Destroyed . | . . . . . Combat | -11 -10 -9 -9 -8 -------- Run | Yrd Mat Mat Min Mat Hostile Shots Fired 345 | . 10 14 48 273 Missed 110 | . 4 6 10 90 Hits 235 | . 6 8 38 183 Projectile 235 | . 6 8 38 183 AOE 20 | . . . 20 . Critical Strikes 3 | . . . . 3 Damage Taken 3290 | . 52 68 1142 2028 Core 806 | . 8 . 247 551 Absorbed by Shields . | . . . . . Core Remaining (%) 78 | 100 96 . 38 . Volleys Fired 49 | 7 11 1 2 28 Largest 2 | 2 2 1 1 1 Hottest 80 | 40 80 40 30 63 Shots Fired 62 | 13 18 1 2 28 Gun 32 | 13 18 1 . . Cannon 20 | . . . . 20 Launcher 10 | . . . 2 8 Special . | . . . . . Kinetic 28 | 13 4 . . 11 Thermal . | . . . . . Explosive 10 | . . . 2 8 Electromagnetic 24 | . 14 1 . 9 Robot Hit Streak 6 | 2 4 . 2 6 Robot Miss Streak 3 | 3 3 1 . 3 Penetration Max . | . . . . . Secondary Targets . | . . . . . Shots Hit Robots 58 | 5 9 . 2 42 Core Hits 30 | 1 7 . 5 17 Critical Kills . | . . . . . Critical Parts Destroyed 2 | . . . . 2 Critical Strikes 6 | . . . . 6 Smash 2 | . . . . 2 Sever 4 | . . . . 4 Melee Attacks 33 | . . . . 33 Impact 8 | . . . . 8 Slashing 25 | . . . . 25 Piercing . | . . . . . Sneak Attacks 2 | . . . . 2 Combat Hostiles . | . . . . . Follow-up Attacks 4 | . . . . 4 Damage Inflicted 1784 | 85 194 6 63 1436 Guns 229 | 80 149 . . . Cannons 380 | . . . . 380 Explosions 372 | . 45 . 43 284 Melee 772 | . . . . 772 Ramming 31 | 5 . 6 20 . Kinetic 293 | 80 28 . . 185 Thermal 45 | . 45 . . . Explosive 327 | . . . 43 284 Electromagnetic 316 | . 121 . . 195 Impact 374 | . . . . 374 Slashing 398 | . . . . 398 Piercing . | . . . . . Highest Corruption 2 | . . . . 2 Average Corruption 1 | . . . . 1 Corruption Purged . | . . . . . Corruption Blocked . | . . . . . Effects 5 | . . . . 5 Message Errors 2 | . . . . 2 Matter Fused 1 | . . . . 1 Data Loss (minor) 2 | . . . . 2 Overload Shots . | . . . . . Overflow Damage 310 | . 17 . . 293 Projectiles 30 | . . . . 30 Explosions 38 | . 17 . . 21 Melee 242 | . . . . 242 Knockbacks 6 | . . . . 6 Impact 4 | . . . . 4 Kinetic 1 | . . . . 1 Secondary 1 | . . . . 1 Self-Inflicted Damage 122 | . . . 36 86 Shots 4 | . . . 2 2 Rammed . | . . . . . Targets Rammed 8 | 2 . 2 4 . Kicked 8 | 2 . 2 4 . Crushed . | . . . . . Highest Temperature 144 | . 144 6 2 9 Average Temperature 51 | . 63 4 1 5 Received Heat Transfer 396 | . 6 . 165 225 Siege Activations . | . . . . . Martial Activations . | . . . . . Shielding Activations . | . . . . . Robots Disrupted . | . . . . . Combat Hostiles . | . . . . . Robots Corrupted 4 | . . . . 4 Combat Hostiles 1 | . . . . 1 Parts Fried 13 | . . . . 13 Impact Corruptions 11 | . . . . 11 Robots Melted . | . . . . . Combat Hostiles . | . . . . . Parts Melted 1 | . 1 . . . Heat Transferred 100 | . 100 . . . Parts Sabotaged . | . . . . . Parts Stolen . | . . . . . Parts Stripped . | . . . . . Power Chain Reactions 1 | . 1 . . . Alert | -11 -10 -9 -9 -8 ------- Run | Yrd Mat Mat Min Mat Maximum Alert Level . | . . . . . Low Security (%) 100 | 100 100 100 100 100 Level 1 . | . . . . . Level 2 . | . . . . . Level 3 . | . . . . . Level 4 . | . . . . . Level 5 . | . . . . . High Security . | . . . . . Max Security . | . . . . . Peak Influence 157 | . 57 10 16 157 Initial 10 | . . 10 . . Average 9 | . 9 . . 14 Influence Increases 593 | . 131 . 26 436 Destroy 0b10 Robot/C 320 | . 60 . . 260 Destroy 0b10 Robot/NC 45 | . 20 . . 25 Destroy Leader 78 | . 26 . . 52 Successful Hack 5 | . 5 . . . Disable Machine 30 | . 15 . . 15 Destroy Structure 55 | . 5 . 11 39 Lose Combat Pursuer 60 | . . . 15 45 Influence Decreases 434 | . 106 25 26 277 Entered New Map 15 | . . 15 . . Time Decay 302 | . 106 10 . 186 Lost Part 117 | . . . 26 91 Squads Dispatched 3 | . 1 . . 2 Investigation . | . . . . . Extermination . | . . . . . Reinforcement 3 | . 1 . . 2 Assault . | . . . . . Garrison . | . . . . . Intercept . | . . . . . Searches Triggered . | . . . . . Construction Impeded . | . . . . . Haulers Reinforced . | . . . . . Active Scanning Responses . | . . . . . Cargo Convoy Interrupts . | . . . . . Stealth | -11 -10 -9 -9 -8 --------- Run | Yrd Mat Mat Min Mat Distress Signals 1 | . 1 . . . Communications Jammed . | . . . . . Distress Signals . | . . . . . Times Spotted 51 | . 12 6 10 23 Peak Tracking Total 10 | . 3 7 7 10 Tactical Retreats 3 | . . . 1 2 Traps | -11 -10 -9 -9 -8 ------- Run | Yrd Mat Mat Min Mat Traps Triggered 2 | . . . . 2 Indirectly . | . . . . . Trap Hack Attempts . | . . . . . Triggered . | . . . . . Disarmed . | . . . . . Reprogrammed 4 | . . . . 4 Reused . | . . . . . Traps Extracted . | . . . . . Installed . | . . . . . Triggered . | . . . . . Machines | -11 -10 -9 -9 -8 ---------- Run | Yrd Mat Mat Min Mat Machines Disabled 2 | . 1 . . 1 Max in Single Turn 1 | . 1 . . 1 Machines Repaired . | . . . . . Machines Dismantled . | . . . . . Machines Sabotaged . | . . . . . Overloaded Fab Kills . | . . . . . Hacking | -11 -10 -9 -9 -8 --------- Run | Yrd Mat Mat Min Mat Machines Accessed 4 | . 2 1 . 1 Terminals 4 | . 2 1 . 1 Fabricators . | . . . . . Repair Stations . | . . . . . Recycling Units . | . . . . . Scanalyzers . | . . . . . Garrison Access . | . . . . . Total Hacks 4 | . 2 1 . 1 Successful 3 | . 1 1 . 1 Failed 1 | . 1 . . . Catastrophic . | . . . . . Database Lockouts . | . . . . . Manual . | . . . . . Terminals 4 | . 2 1 . 1 Fabricators . | . . . . . Repair Stations . | . . . . . Recycling Units . | . . . . . Scanalyzers . | . . . . . Garrison Access . | . . . . . Terminal Hacks 3 | . 1 1 . 1 Emergency Access Points 1 | . . 1 . . Reprogram Traps 1 | . . . . 1 Zone Layout 1 | . 1 . . . Fabricator Hacks . | . . . . . Repair Station Hacks . | . . . . . Recycling Unit Hacks . | . . . . . Scanalyzer . | . . . . . Garrison Access Hacks . | . . . . . Unauthorized Hacks . | . . . . . Terminals . | . . . . . Fabricators . | . . . . . Repair Stations . | . . . . . Recycling Units . | . . . . . Scanalyzers . | . . . . . Garrison Access . | . . . . . Data Cores Recovered . | . . . . . Used . | . . . . . Hacking Detections 1 | . 1 . . . Full Trace Events . | . . . . . Feedback Events . | . . . . . Feedback Blocked . | . . . . . Robot Schematics Acquired . | . . . . . Robots Built . | . . . . . Authchips . | . . . . . Time . | . . . . . Total Robot Build Rating . | . . . . . Part Schematics Acquired . | . . . . . Parts Built . | . . . . . Authchips . | . . . . . Time . | . . . . . Total Part Build Rating . | . . . . . Part Studies Acquired . | . . . . . Parts Repaired . | . . . . . Time . | . . . . . Parts Recycled . | . . . . . Recycled Matter . | . . . . . Retrieved Matter . | . . . . . Retrieved Components . | . . . . . Parts Scanalyzed . | . . . . . Part Schematics Acquired . | . . . . . Parts Damaged . | . . . . . Bothacking | -11 -10 -9 -9 -8 ------------ Run | Yrd Mat Mat Min Mat Used RIF Installer . | . . . . . Robots Hacked . | . . . . . Non-combat . | . . . . . Combat . | . . . . . Robot Hacks Applied . | . . . . . Relay Couplers Released . | . . . . . Fabnet Peak Effective % . | . . . . . Robots Rewired . | . . . . . Allies Hacked . | . . . . . Hacks Repelled . | . . . . . Allies | -11 -10 -9 -9 -8 -------- Run | Yrd Mat Mat Min Mat Total Allies . | . . . . . Largest Group . | . . . . . Highest-Rated Group . | . . . . . Highest-Rated Ally . | . . . . . Total Orders . | . . . . . Ally Attacks . | . . . . . Total Damage . | . . . . . Kills . | . . . . . Allies Corrupted . | . . . . . Allies Melted . | . . . . . Intel | -11 -10 -9 -9 -8 ------- Run | Yrd Mat Mat Min Mat Active Infowar (turns) . | . . . . . Robot Analysis Total . | . . . . . Derelict Logs Recovered . | . . . . . Drone Launches . | . . . . . Drone Recoveries . | . . . . . Exploration | -11 -10 -9 -9 -8 ------------- Run | Yrd Mat Mat Min Mat Turns Passed 2035 | 104 614 281 121 915 Spaces Moved 1138 | 54 363 220 85 416 Core 60 | 8 . . . 52 Treads 356 | . . . . 356 Legs 722 | 46 363 220 85 8 Wheels . | . . . . . Hover . | . . . . . Flight . | . . . . . Fastest Speed 50 | 50 120 120 120 120 Average Speed 153 | 114 157 124 120 176 Slowest Speed 350 | 120 190 190 120 350 Overloaded Moves . | . . . . . Propulsion Burnouts . | . . . . . Robots Hopped . | . . . . . Potential Cave-ins 7 | . . . 7 . Cave-ins Triggered . | . . . . . Exploration Rate (%) 23 | 3 40 20 28 24 Regions Visited 4 Branch Regions 1 Pre-discovered Areas . | . . . . . Known Exits Taken . | . . . . . Unknown Exits Taken 4 | 1 1 1 1 . Scrap Searched . | . . . . . Spaces Dug . | . . . . . Terrain Destroyed 75 | . 5 . 18 52 Melee . | . . . . . Projectile 1 | . . . . 1 AOE 74 | . 5 . 18 51 Terrain Rammed . | . . . . . Walls Destroyed . | . . . . . Machines Disabled . | . . . . . Actions | -11 -10 -9 -9 -8 --------- Run | Yrd Mat Mat Min Mat Total 1315 | 81 390 226 101 517 Wait . | . . . . . Move 1135 | 54 362 219 84 416 Hop . | . . . . . Pick Up 33 | 9 7 . . 17 Fast Attach 5 | . 1 2 . 2 Attach 24 | 6 1 . 2 15 Detach 1 | . . 1 . . Swap 13 | 4 3 . . 6 Drop 11 | . 5 1 . 5 Fire 49 | 7 11 1 2 28 Melee 28 | . . . . 28 Ram . | . . . . . Kick 7 | 1 . 2 4 . Crush . | . . . . . Escape Stasis . | . . . . . Rewire 9 | . . . 9 . Trap . | . . . . . Miscellaneous . | . . . . . Route ------- -11/Scrapyard -10/Materials -9/Materials -9/Mines -8/Materials History --------- Turn | Location | Event 2 | -11/Scrapyard | Met Revision 17 5 | -11/Scrapyard | Discovered new exit (range 15) 105 | -11/Scrapyard | Entered Materials 315 | -10/Materials | Build established: Mutant 396 | -10/Materials | Discovered new exit (range 12) 719 | -10/Materials | Entered another Materials area 719 | -9/Materials | Evolved 2 slots: Propulsion x2 971 | -9/Materials | Discovered new exit (range 16) 1000 | -9/Materials | Entered Mines 1039 | -9/Mines | Assembled infested the area 1040 | -9/Mines | Discovered new exit (range 13) 1066 | -9/Mines | Met 8R-AWN 1087 | -9/Mines | Core integrity fell below 50% 1106 | -9/Mines | Lost 9 parts (1p3n3u2w) 1121 | -9/Mines | Entered Materials 1121 | -8/Materials | Evolved 2 slots: Utility x2 1807 | -8/Materials | Lost 4 parts (2n2u) 1941 | -8/Materials | Core integrity fell below 50% 2024 | -8/Materials | Core integrity fell below 20% 2036 | -8/Materials | Destroyed self with Rocket Launcher Last Messages --------------- 02000_ X-62 Marksman destroyed. 02001_ Carbon-fiber Leg destroyed. 02002_ Lgt. Nuclear Core destroyed. 02008_ Acquired 17 matter. 02009_ G-47 Trooper destroyed. 02014_ Sneak attack on M-13 Machinist. 02014_ Destroyed Wheel. 02014_ M-13 Machinist system corrupted by crushing effect. 02014_ M-13 Machinist knocked back. 02015_ M-13 Machinist system terminally corrupted. 02015_ Recalibrator fried. 02017_ Imp. Carbon-fiber Leg destroyed. 02017_ Com. Matter Pod destroyed. 02024_ R-06 Scavenger collects Pulse Rifle. 02032_ S-10 Pest destroyed. 02032_ R-06 Scavenger collects Pulse Rifle. 02034_ Destroyed Lgt. Ion Engine. 02034_ S-10 Pest destroyed. Map ----- +----------------------------------------------------+ | | | | | | | ?????????????????????????????????????????????????? | | ?????????????????????????????????????????????????? | | ?????????????????????????????????????????????????? | | ?????????????????????????????????????????????????? | | ?????????????????????????????????????????????????? | | ?????????????????????????????????????????????????? | | ?????????????????????????????????????????????????? | | ????????????????????????? ???????????????????????? | | ????????????????????????? ???????????????????????? | | ????????????????????????? ???????????????????????? | | ????????????????????????? ???????????????????????? | | ????????????????????????? ???????????????????????? | | ????????????????????????? ???????????????????????? | | ????????????????????????? ???????????????????????? | | ????????????????????????# #??????????????????????? | | ????????????????????????+ #??????????????????????? | | ????????????????????????# #??????????????????????? | | ????????????????????????# #??????????????????????? | | ????????????????????????# #??????????????????????? | | ????????????????????????# #??????????????????????? | | ????###########????????## ##????T #??????????????? | | ????# * ########## # #??????????????? | | ????# ##!!!!!!# @ #??????????????? | | ????# ##!!!!!!## #??????????????? | | ?#### ## ## = s #??????????????? | | ###########+#### # % ###+####+#??????????? | | % [ %= ????????? | | ^ ##### !!! [ ????????? | | ^ #???#! %r[= ????????? | | #???##%+ ############?????????? | | #######% #???# % [! ##????????????????????? | | # # # #???#%% ##?????????????????????? | | # # " #???# #??????????????????????? | | ### # # "" #???# #??????????????????????? | | ####### ##### "T" ]#??????????????????????? | | T # + #??????????????????????? | | # """ ####+###??????????????????????? | | + """ #### #????????????????????????? | | # """ +????????????????????????? | | # #????????????????????????? | | # #????????????????????????? | | ###+### """ #????????????????????????? | | ### """ #????????????????????????? | | # """ #????????????????????????? | | + #????????????????????????? | | # ????????????????????? | | # ????????????????????? | +----------------------------------------------------+ Best States ------------- Heat Dissipation 31 Energy Generation 14 Energy Capacity 160 Matter Stores 361 Matter Capacity 450 Sight Range 16 Terrain Scan Density 10 Armor Coverage 450 Evasion (%) 55 Recoil Reduction 2 Particle Charging 15 Item Schematics ----------------- None Robot Schematics ------------------ None Fabricated ------------ Nothing Repaired ---------- Nothing Studied --------- None Alien Tech Used ----------------- None Achievements -------------- Heavy Suspicion I Survived The Infestation Power Corrupts You Again Challenges ------------ None Game ------ Seed GlidesysImprinterFalx Manual? 0 Play Time 00:30:23 Cumulative 2.1 hours Start 2025.11.30 @ 22:42:16 End 2025.12.01 @ 09:42:28 Sessions 3 Manual Loads 0 Difficulty Rogue Special Mode None Game No. 3 Rogue 3 Adventurer 0 Explorer 0 Win Type - Total 0 Types 0/0/0/0/0/0/0/0/0/0 Lore% 0 Gallery% 5 Achievement% 5 Wizard Run 0 Options --------- Layout 1 ASCII 0 Keyboard 0 Movement Arrows Keybinds 0 Fullscreen 1 Font 24/Proggy Map View 50x35 Zoom Use 0% Tactical HUD 1 Map Filters NONE Filters NONE Steam 1 RUN: 3e92c7f8-3d58-42ba-bcf2-458515e4d4b2